[Event "Titled Tuesday Blitz May 10 Late 2022"]
[White "Tanenbaum, Zachary"]
[Black "Kanyamarala, Tarun"]
[WhiteFideId "2060850"]
[BlackFideId "45004714"]
[WhiteElo "2682"]
[BlackElo "2538"]
[Result "0-1"]
[Round "09"]
[TimeControl "180+1"]
[Date "2022.05.11"]
[WhiteClock "0:00:06"]
[BlackClock "0:00:03"]

1. e4 {[%clk 0:02:59]}  d6 {[%clk 0:03:00]} 2. d4 {[%clk 0:02:59]}  Nf6 {[%clk 0:03:00]} 3. Nc3 {[%clk 0:03:00]}  e5 {[%clk 0:03:00]} 4. Nf3 {[%clk 0:02:59]}  exd4 {[%clk 0:03:01]} 5. Nxd4 {[%clk 0:02:59]}  Be7 {[%clk 0:02:59]} 6. Bc4 {[%clk 0:02:59]}  O-O {[%clk 0:02:58]} 7. Bb3 {[%clk 0:02:59]}  Na6 {[%clk 0:02:51]} 8. O-O {[%clk 0:02:59]}  Nc5 {[%clk 0:02:51]} 9. Re1 {[%clk 0:02:56]}  Nxb3 {[%clk 0:02:51]} 10. axb3 {[%clk 0:02:56]}  c6 {[%clk 0:02:49]} 11. Bf4 {[%clk 0:02:55]}  h6 {[%clk 0:02:45]} 12. Qd2 {[%clk 0:02:48]}  Ng4 {[%clk 0:02:44]} 13. Rad1 {[%clk 0:02:46]}  Bh4 {[%clk 0:02:33]} 14. Re2 {[%clk 0:02:26]}  Ne5 {[%clk 0:02:28]} 15. Qe3 {[%clk 0:02:19]}  Re8 {[%clk 0:02:24]} 16. Bxe5 {[%clk 0:02:17]}  dxe5 {[%clk 0:02:21]} 17. Nxc6 {[%clk 0:01:33]}  bxc6 {[%clk 0:02:02]} 18. Rxd8 {[%clk 0:01:33]}  Bxd8 {[%clk 0:02:02]} 19. Rd2 {[%clk 0:01:22]}  Bg5 {[%clk 0:02:01]} 20. Qe2 {[%clk 0:01:22]}  Bg4 {[%clk 0:01:55]} 21. f3 {[%clk 0:01:21]}  Bxd2 {[%clk 0:01:48]} 22. Qxd2 {[%clk 0:01:22]}  Be6 {[%clk 0:01:47]} 23. Qd6 {[%clk 0:01:21]}  Rad8 {[%clk 0:01:44]} 24. Qxc6 {[%clk 0:01:21]}  Re7 {[%clk 0:01:42]} 25. Qc5 {[%clk 0:01:19]}  Red7 {[%clk 0:01:40]} 26. Qxe5 {[%clk 0:01:12]}  Rd2 {[%clk 0:01:41]} 27. Qa5 {[%clk 0:01:11]}  R8d7 {[%clk 0:01:39]} 28. f4 {[%clk 0:00:18]}  Rxc2 {[%clk 0:01:35]} 29. Nd5 {[%clk 0:00:09]}  Bxd5 {[%clk 0:01:26]} 30. exd5 {[%clk 0:00:10]}  Rc1+ {[%clk 0:01:27]} 31. Kf2 {[%clk 0:00:10]}  Rd1 {[%clk 0:01:27]} 32. Qc3 {[%clk 0:00:08]}  R1xd5 {[%clk 0:01:26]} 33. h3 {[%clk 0:00:08]}  Rd1 {[%clk 0:01:23]} 34. Qc8+ {[%clk 0:00:07]}  Kh7 {[%clk 0:01:23]} 35. Kg3 {[%clk 0:00:07]}  g6 {[%clk 0:01:14]} 36. b4 {[%clk 0:00:05]}  Kg7 {[%clk 0:01:11]} 37. Qc3+ {[%clk 0:00:05]}  Kh7 {[%clk 0:01:10]} 38. Kh2 {[%clk 0:00:05]}  Rf1 {[%clk 0:01:08]} 39. Qc4 {[%clk 0:00:04]}  Rfd1 {[%clk 0:01:04]} 40. b5 {[%clk 0:00:04]}  h5 {[%clk 0:01:03]} 41. Qc5 {[%clk 0:00:03]}  R1d4 {[%clk 0:01:00]} 42. f5 {[%clk 0:00:02]}  R4d5 {[%clk 0:00:57]} 43. fxg6+ {[%clk 0:00:02]}  fxg6 {[%clk 0:00:58]} 44. Qb4 {[%clk 0:00:03]}  Rb7 {[%clk 0:00:57]} 45. Qc4 {[%clk 0:00:02]}  Rdxb5 {[%clk 0:00:57]} 46. Qd4 {[%clk 0:00:02]}  Rxb2 {[%clk 0:00:57]} 47. h4 {[%clk 0:00:01]}  R2b4 {[%clk 0:00:57]} 48. Qd5 {[%clk 0:00:02]}  Rxh4+ {[%clk 0:00:56]} 49. Kg3 {[%clk 0:00:02]}  Rhb4 {[%clk 0:00:54]} 50. Kh3 {[%clk 0:00:03]}  Rb3+ {[%clk 0:00:54]} 51. g3 {[%clk 0:00:03]}  R3b6 {[%clk 0:00:50]} 52. Qa5 {[%clk 0:00:03]}  Rc7 {[%clk 0:00:49]} 53. Kh4 {[%clk 0:00:03]}  Rf7 {[%clk 0:00:47]} 54. Kh3 {[%clk 0:00:03]}  Rbf6 {[%clk 0:00:44]} 55. Kh4 {[%clk 0:00:03]}  Rf1 {[%clk 0:00:44]} 56. Kh3 {[%clk 0:00:04]}  Kh6 {[%clk 0:00:42]} 57. Qa4 {[%clk 0:00:03]}  R1f5 {[%clk 0:00:40]} 58. Qa6 {[%clk 0:00:03]}  R5f6 {[%clk 0:00:37]} 59. Qa5 {[%clk 0:00:03]}  Kh7 {[%clk 0:00:28]} 60. Kh4 {[%clk 0:00:03]}  Re6 {[%clk 0:00:25]} 61. Kh3 {[%clk 0:00:03]}  Re3 {[%clk 0:00:23]} 62. Kh4 {[%clk 0:00:03]}  Ref3 {[%clk 0:00:16]} 63. Kh3 {[%clk 0:00:03]}  Kh6 {[%clk 0:00:13]} 64. Kh4 {[%clk 0:00:02]}  R3f6 {[%clk 0:00:09]} 65. Kh3 {[%clk 0:00:02]}  a6 {[%clk 0:00:09]} 66. Kh4 {[%clk 0:00:02]}  Kg7 {[%clk 0:00:08]} 67. Kh3 {[%clk 0:00:02]}  Rb7 {[%clk 0:00:07]} 68. Kh4 {[%clk 0:00:03]}  Rb5 {[%clk 0:00:07]} 69. Qc7+ {[%clk 0:00:03]}  Rf7 {[%clk 0:00:06]} 70. Qc3+ {[%clk 0:00:03]}  Kh7 {[%clk 0:00:05]} 71. Qc4 {[%clk 0:00:04]}  Rfb7 {[%clk 0:00:04]} 72. Kh3 {[%clk 0:00:04]}  a5 {[%clk 0:00:04]} 73. Qa4 {[%clk 0:00:04]}  Rf5 {[%clk 0:00:03]} 74. Qe4 {[%clk 0:00:04]}  Rbf7 {[%clk 0:00:02]} 75. Qa4 {[%clk 0:00:04]}  Kg7 {[%clk 0:00:03]} 76. Qa1+ {[%clk 0:00:04]}  R5f6 {[%clk 0:00:03]} 77. Qa4 {[%clk 0:00:05]}  Kh6 {[%clk 0:00:03]} 78. Qxa5 {[%clk 0:00:06]}  Rf1 {[%clk 0:00:03]} 79. Kg2 {[%clk 0:00:06]}  R7f2+ {[%clk 0:00:02]} 80. Kh3 {[%clk 0:00:06]}  Rh1# {[%clk 0:00:03]} 0-1


[Site "https://www.chess.com"]

[Event "Titled Tuesday Blitz May 10 Late 2022"]
[White "Vajda, Levente"]
[Black "RestartingChess"]
[WhiteFideId "1203975"]
[WhiteElo "2573"]
[BlackElo "2512"]
[Result "1-0"]
[Round "09"]
[TimeControl "180+1"]
[Date "2022.05.10"]
[WhiteClock "0:00:17"]
[BlackClock "0:00:33"]

1. e4 {[%clk 0:03:00]}  c6 {[%clk 0:03:00]} 2. d4 {[%clk 0:03:00]}  d5 {[%clk 0:03:01]} 3. exd5 {[%clk 0:03:01]}  cxd5 {[%clk 0:03:02]} 4. c4 {[%clk 0:03:01]}  Nf6 {[%clk 0:03:03]} 5. Nc3 {[%clk 0:03:02]}  g6 {[%clk 0:03:03]} 6. cxd5 {[%clk 0:03:01]}  Nxd5 {[%clk 0:03:03]} 7. Qb3 {[%clk 0:03:01]}  Nxc3 {[%clk 0:03:04]} 8. Bc4 {[%clk 0:03:01]}  e6 {[%clk 0:02:51]} 9. bxc3 {[%clk 0:03:00]}  Bg7 {[%clk 0:02:51]} 10. Ba3 {[%clk 0:02:59]}  Nc6 {[%clk 0:02:51]} 11. Nf3 {[%clk 0:02:51]}  Na5 {[%clk 0:02:47]} 12. Bb5+ {[%clk 0:02:51]}  Bd7 {[%clk 0:02:47]} 13. Qa4 {[%clk 0:02:51]}  b6 {[%clk 0:02:39]} 14. O-O {[%clk 0:02:46]}  Bxb5 {[%clk 0:02:39]} 15. Qxb5+ {[%clk 0:02:46]}  Qd7 {[%clk 0:02:40]} 16. Qe2 {[%clk 0:02:39]}  Rc8 {[%clk 0:02:40]} 17. Ne5 {[%clk 0:02:37]}  Qd5 {[%clk 0:02:35]} 18. Qa6 {[%clk 0:01:56]}  Rxc3 {[%clk 0:02:27]} 19. Bb4 {[%clk 0:01:47]}  Rc7 {[%clk 0:02:00]} 20. Rac1 {[%clk 0:01:46]}  Bxe5 {[%clk 0:02:00]} 21. dxe5 {[%clk 0:01:40]}  Nc6 {[%clk 0:01:54]} 22. Bd6 {[%clk 0:01:33]}  Rd7 {[%clk 0:01:45]} 23. Rfd1 {[%clk 0:01:26]}  Qa5 {[%clk 0:01:34]} 24. Qc8+ {[%clk 0:01:00]}  Nd8 {[%clk 0:01:33]} 25. h3 {[%clk 0:00:32]}  Qa4 {[%clk 0:01:20]} 26. Rd3 {[%clk 0:00:31]}  f5 {[%clk 0:01:09]} 27. Ra3 {[%clk 0:00:29]}  Qb5 {[%clk 0:01:01]} 28. Rb3 {[%clk 0:00:28]}  Qa4 {[%clk 0:01:01]} 29. Rb4 {[%clk 0:00:21]}  Qa5 {[%clk 0:00:41]} 30. Rc7 {[%clk 0:00:19]}  Rxd6 {[%clk 0:00:38]} 31. exd6 {[%clk 0:00:17]}  Qxb4 {[%clk 0:00:36]} 32. Re7+ {[%clk 0:00:16]}  Kf8 {[%clk 0:00:33]} 33. Qxd8# {[%clk 0:00:17]} 1-0


[Site "https://www.chess.com"]

[Event "Titled Tuesday Blitz May 10 Late 2022"]
[White "Vasquez Schroeder, Rodrigo"]
[Black "Sadhwani, Raunak"]
[WhiteFideId "3400042"]
[BlackFideId "35093487"]
[WhiteElo "2567"]
[BlackElo "2616"]
[Result "0-1"]
[Round "09"]
[TimeControl "180+1"]
[Date "2022.05.10"]
[WhiteClock "0:00:19"]
[BlackClock "0:00:36"]

1. e4 {[%clk 0:03:00]}  e5 {[%clk 0:03:00]} 2. Nf3 {[%clk 0:03:00]}  Nc6 {[%clk 0:03:00]} 3. Bb5 {[%clk 0:03:01]}  Nge7 {[%clk 0:03:00]} 4. O-O {[%clk 0:02:57]}  Ng6 {[%clk 0:03:00]} 5. Nc3 {[%clk 0:02:50]}  a6 {[%clk 0:02:55]} 6. Bxc6 {[%clk 0:02:43]}  dxc6 {[%clk 0:02:56]} 7. d3 {[%clk 0:02:41]}  Bd6 {[%clk 0:02:51]} 8. h3 {[%clk 0:02:38]}  O-O {[%clk 0:02:51]} 9. Be3 {[%clk 0:02:37]}  c5 {[%clk 0:02:44]} 10. Ne2 {[%clk 0:02:33]}  f6 {[%clk 0:02:40]} 11. Ng3 {[%clk 0:02:31]}  Be6 {[%clk 0:02:40]} 12. b3 {[%clk 0:02:31]}  Qd7 {[%clk 0:02:41]} 13. Nh2 {[%clk 0:02:25]}  b5 {[%clk 0:02:38]} 14. Qh5 {[%clk 0:02:15]}  c4 {[%clk 0:02:25]} 15. dxc4 {[%clk 0:02:13]}  bxc4 {[%clk 0:02:26]} 16. Rfd1 {[%clk 0:02:13]}  Nf4 {[%clk 0:02:10]} 17. Qf3 {[%clk 0:02:09]}  Ng6 {[%clk 0:01:46]} 18. Ng4 {[%clk 0:02:03]}  Nh4 {[%clk 0:01:43]} 19. Qe2 {[%clk 0:02:02]}  Qb5 {[%clk 0:01:41]} 20. Qe1 {[%clk 0:01:37]}  Rad8 {[%clk 0:01:39]} 21. Rab1 {[%clk 0:01:30]}  cxb3 {[%clk 0:01:32]} 22. axb3 {[%clk 0:01:29]}  Bb4 {[%clk 0:01:32]} 23. Qf1 {[%clk 0:01:28]}  Qxf1+ {[%clk 0:01:20]} 24. Kxf1 {[%clk 0:01:26]}  c5 {[%clk 0:01:18]} 25. Ne2 {[%clk 0:01:19]}  c4 {[%clk 0:00:54]} 26. c3 {[%clk 0:01:17]}  Be7 {[%clk 0:00:48]} 27. b4 {[%clk 0:01:16]}  Rd3 {[%clk 0:00:48]} 28. Ra1 {[%clk 0:00:59]}  h5 {[%clk 0:00:44]} 29. Nh2 {[%clk 0:00:58]}  Rfd8 {[%clk 0:00:45]} 30. Rdc1 {[%clk 0:00:55]}  f5 {[%clk 0:00:39]} 31. exf5 {[%clk 0:00:44]}  Nxf5 {[%clk 0:00:40]} 32. Bb6 {[%clk 0:00:44]}  Rf8 {[%clk 0:00:36]} 33. Nf3 {[%clk 0:00:41]}  e4 {[%clk 0:00:37]} 34. Ne5 {[%clk 0:00:40]}  Bf6 {[%clk 0:00:37]} 35. Nxd3 {[%clk 0:00:30]}  cxd3 {[%clk 0:00:38]} 36. Nf4 {[%clk 0:00:31]}  Bc4 {[%clk 0:00:39]} 37. Ke1 {[%clk 0:00:30]}  Bg5 {[%clk 0:00:37]} 38. g3 {[%clk 0:00:20]}  h4 {[%clk 0:00:37]} 39. Ng6 {[%clk 0:00:19]}  d2+ {[%clk 0:00:36]} 0-1


[Site "https://www.chess.com"]

[Event "Titled Tuesday Blitz May 10 Late 2022"]
[White "Vlassov, Nikolai"]
[Black "Terry, Renato"]
[WhiteFideId "4103360"]
[BlackFideId "3803457"]
[WhiteElo "2407"]
[BlackElo "2577"]
[Result "0-1"]
[Round "09"]
[TimeControl "180+1"]
[Date "2022.05.10"]
[WhiteClock "0:00:02"]
[BlackClock "0:00:32"]

1. e4 {[%clk 0:03:00]}  e6 {[%clk 0:02:58]} 2. d4 {[%clk 0:03:00]}  d5 {[%clk 0:02:59]} 3. exd5 {[%clk 0:03:00]}  exd5 {[%clk 0:02:58]} 4. Nf3 {[%clk 0:03:01]}  Nc6 {[%clk 0:02:59]} 5. Bd3 {[%clk 0:03:00]}  Bd6 {[%clk 0:03:00]} 6. O-O {[%clk 0:03:00]}  Bg4 {[%clk 0:03:00]} 7. Re1+ {[%clk 0:03:00]}  Nge7 {[%clk 0:03:01]} 8. c3 {[%clk 0:03:00]}  Qd7 {[%clk 0:03:01]} 9. b4 {[%clk 0:03:00]}  O-O {[%clk 0:03:01]} 10. b5 {[%clk 0:02:58]}  Na5 {[%clk 0:03:01]} 11. Nbd2 {[%clk 0:02:56]}  Bf5 {[%clk 0:03:01]} 12. Bf1 {[%clk 0:02:54]}  Ng6 {[%clk 0:02:59]} 13. Ne5 {[%clk 0:02:48]}  Bxe5 {[%clk 0:02:52]} 14. dxe5 {[%clk 0:02:48]}  Rfe8 {[%clk 0:02:53]} 15. Ba3 {[%clk 0:02:19]}  Nxe5 {[%clk 0:02:47]} 16. Bb4 {[%clk 0:02:17]}  Nac4 {[%clk 0:02:44]} 17. Nxc4 {[%clk 0:02:10]}  dxc4 {[%clk 0:02:33]} 18. Qxd7 {[%clk 0:01:56]}  Bxd7 {[%clk 0:02:34]} 19. f4 {[%clk 0:01:49]}  Nd3 {[%clk 0:02:33]} 20. Bxd3 {[%clk 0:01:48]}  cxd3 {[%clk 0:02:34]} 21. c4 {[%clk 0:01:47]}  h5 {[%clk 0:02:13]} 22. h3 {[%clk 0:01:25]}  Be6 {[%clk 0:02:02]} 23. Re4 {[%clk 0:01:18]}  a6 {[%clk 0:02:02]} 24. bxa6 {[%clk 0:01:03]}  bxa6 {[%clk 0:01:58]} 25. Rd1 {[%clk 0:00:58]}  Bf5 {[%clk 0:01:57]} 26. Rxe8+ {[%clk 0:00:55]}  Rxe8 {[%clk 0:01:58]} 27. Re1 {[%clk 0:00:47]}  Rd8 {[%clk 0:01:49]} 28. Re5 {[%clk 0:00:23]}  Be6 {[%clk 0:01:50]} 29. Bd2 {[%clk 0:00:20]}  Bxc4 {[%clk 0:01:40]} 30. a3 {[%clk 0:00:18]}  Rb8 {[%clk 0:01:34]} 31. Kf2 {[%clk 0:00:14]}  Rb5 {[%clk 0:01:11]} 32. Re8+ {[%clk 0:00:12]}  Kh7 {[%clk 0:01:11]} 33. Ke3 {[%clk 0:00:11]}  f6 {[%clk 0:01:09]} 34. g4 {[%clk 0:00:11]}  h4 {[%clk 0:01:09]} 35. Re7 {[%clk 0:00:09]}  c6 {[%clk 0:01:08]} 36. Bc3 {[%clk 0:00:08]}  Kg8 {[%clk 0:01:07]} 37. g5 {[%clk 0:00:07]}  Kf8 {[%clk 0:01:01]} 38. gxf6 {[%clk 0:00:07]}  gxf6 {[%clk 0:01:02]} 39. Rh7 {[%clk 0:00:06]}  Kg8 {[%clk 0:00:45]} 40. Rxh4 {[%clk 0:00:06]}  Rb3 {[%clk 0:00:46]} 41. Bd2 {[%clk 0:00:06]}  Rxa3 {[%clk 0:00:45]} 42. Kd4 {[%clk 0:00:06]}  Ra4 {[%clk 0:00:44]} 43. Kc3 {[%clk 0:00:06]}  Bb5 {[%clk 0:00:43]} 44. Rh6 {[%clk 0:00:06]}  Kg7 {[%clk 0:00:42]} 45. f5 {[%clk 0:00:07]}  Rc4+ {[%clk 0:00:41]} 46. Kb3 {[%clk 0:00:05]}  Rc2 {[%clk 0:00:42]} 47. Rg6+ {[%clk 0:00:05]}  Kf7 {[%clk 0:00:41]} 48. Bh6 {[%clk 0:00:06]}  Rf2 {[%clk 0:00:37]} 49. Rg7+ {[%clk 0:00:06]}  Ke8 {[%clk 0:00:38]} 50. Rg8+ {[%clk 0:00:06]}  Kd7 {[%clk 0:00:38]} 51. Rg7+ {[%clk 0:00:06]}  Kd6 {[%clk 0:00:38]} 52. Rg8 {[%clk 0:00:06]}  Rxf5 {[%clk 0:00:38]} 53. Rd8+ {[%clk 0:00:05]}  Ke7 {[%clk 0:00:38]} 54. Rd4 {[%clk 0:00:04]}  Rh5 {[%clk 0:00:38]} 55. Bd2 {[%clk 0:00:03]}  Rxh3 {[%clk 0:00:38]} 56. Kb4 {[%clk 0:00:03]}  Rh5 {[%clk 0:00:36]} 57. Ka5 {[%clk 0:00:02]}  c5 {[%clk 0:00:36]} 58. Re4+ {[%clk 0:00:02]}  Re5 {[%clk 0:00:34]} 59. Rh4 {[%clk 0:00:01]}  Re2 {[%clk 0:00:34]} 60. Bc3 {[%clk 0:00:02]}  Rc2 {[%clk 0:00:32]} 0-1


[Site "https://www.chess.com"]

[Event "Titled Tuesday Blitz May 10 Late 2022"]
[White "Vusatiuk, Vladimir"]
[Black "Wieczorek, Oskar"]
[WhiteFideId "14118610"]
[BlackFideId "1133950"]
[WhiteElo "2521"]
[BlackElo "2615"]
[Result "1-0"]
[Round "09"]
[TimeControl "180+1"]
[Date "2022.05.11"]
[WhiteClock "0:00:11"]
[BlackClock "0:00:03"]

1. d4 {[%clk 0:03:00]}  Nf6 {[%clk 0:02:59]} 2. c4 {[%clk 0:03:00]}  g6 {[%clk 0:02:58]} 3. Nc3 {[%clk 0:03:01]}  Bg7 {[%clk 0:02:59]} 4. e4 {[%clk 0:03:01]}  d6 {[%clk 0:02:59]} 5. h3 {[%clk 0:02:59]}  e5 {[%clk 0:02:57]} 6. dxe5 {[%clk 0:02:58]}  dxe5 {[%clk 0:02:57]} 7. Qxd8+ {[%clk 0:02:59]}  Kxd8 {[%clk 0:02:58]} 8. Nf3 {[%clk 0:02:55]}  Nbd7 {[%clk 0:02:53]} 9. b3 {[%clk 0:02:50]}  c6 {[%clk 0:02:51]} 10. Ba3 {[%clk 0:02:48]}  Bf8 {[%clk 0:02:51]} 11. Bb2 {[%clk 0:02:38]}  Bc5 {[%clk 0:02:44]} 12. O-O-O {[%clk 0:02:34]}  Ke7 {[%clk 0:02:41]} 13. Rd2 {[%clk 0:02:17]}  Nh5 {[%clk 0:02:20]} 14. g3 {[%clk 0:02:11]}  f6 {[%clk 0:02:13]} 15. Na4 {[%clk 0:01:59]}  Bb4 {[%clk 0:02:04]} 16. Rd1 {[%clk 0:01:56]}  Nc5 {[%clk 0:01:55]} 17. a3 {[%clk 0:01:39]}  Nxa4 {[%clk 0:01:54]} 18. axb4 {[%clk 0:01:39]}  Nxb2 {[%clk 0:01:54]} 19. Kxb2 {[%clk 0:01:40]}  Be6 {[%clk 0:01:30]} 20. c5 {[%clk 0:01:38]}  Rhd8 {[%clk 0:01:30]} 21. Be2 {[%clk 0:01:34]}  Rxd1 {[%clk 0:01:29]} 22. Rxd1 {[%clk 0:01:35]}  Bxh3 {[%clk 0:01:27]} 23. Nd2 {[%clk 0:01:28]}  Rd8 {[%clk 0:01:17]} 24. Bxh5 {[%clk 0:01:18]}  gxh5 {[%clk 0:01:16]} 25. Kc3 {[%clk 0:01:19]}  Bg4 {[%clk 0:01:08]} 26. Ra1 {[%clk 0:01:09]}  a6 {[%clk 0:01:06]} 27. Nc4 {[%clk 0:01:09]}  Ke6 {[%clk 0:00:31]} 28. Nd6 {[%clk 0:01:09]}  Rd7 {[%clk 0:00:32]} 29. Rf1 {[%clk 0:01:04]}  Bf3 {[%clk 0:00:29]} 30. Re1 {[%clk 0:01:04]}  Bg4 {[%clk 0:00:26]} 31. Rf1 {[%clk 0:01:04]}  Rg7 {[%clk 0:00:23]} 32. Kd3 {[%clk 0:00:58]}  f5 {[%clk 0:00:14]} 33. exf5+ {[%clk 0:00:44]}  Bxf5+ {[%clk 0:00:15]} 34. Ke3 {[%clk 0:00:45]}  Bc2 {[%clk 0:00:13]} 35. Rg1 {[%clk 0:00:45]}  Bxb3 {[%clk 0:00:10]} 36. Rh1 {[%clk 0:00:45]}  b6 {[%clk 0:00:05]} 37. Rxh5 {[%clk 0:00:44]}  bxc5 {[%clk 0:00:05]} 38. bxc5 {[%clk 0:00:45]}  a5 {[%clk 0:00:05]} 39. Ne4 {[%clk 0:00:23]}  a4 {[%clk 0:00:04]} 40. Rh6+ {[%clk 0:00:17]}  Kd5 {[%clk 0:00:03]} 41. Rd6+ {[%clk 0:00:17]}  Kc4 {[%clk 0:00:03]} 42. Rxc6 {[%clk 0:00:16]}  a3 {[%clk 0:00:04]} 43. Ra6 {[%clk 0:00:11]}  a2 {[%clk 0:00:04]} 44. Nd2+ {[%clk 0:00:11]}  Kc3 {[%clk 0:00:04]} 45. Ra3 {[%clk 0:00:11]}  Rb7 {[%clk 0:00:03]} 46. c6 {[%clk 0:00:11]} 1-0


[Site "https://www.chess.com"]

[Event "Titled Tuesday Blitz May 10 Late 2022"]
[White "Winkels, Marcel"]
[Black "Novikova, Galina"]
[WhiteFideId "1003887"]
[BlackFideId "4157095"]
[WhiteElo "1900"]
[BlackElo "1863"]
[Result "0-1"]
[Round "09"]
[TimeControl "180+1"]
[Date "2022.05.11"]
[WhiteClock "0:00:42"]
[BlackClock "0:01:24"]

1. e4 {[%clk 0:03:00]}  e6 {[%clk 0:02:59]} 2. d3 {[%clk 0:02:59]}  d5 {[%clk 0:02:58]} 3. Nd2 {[%clk 0:03:00]}  Nf6 {[%clk 0:02:58]} 4. Ngf3 {[%clk 0:03:00]}  g6 {[%clk 0:02:58]} 5. g3 {[%clk 0:03:00]}  Bg7 {[%clk 0:02:59]} 6. Bg2 {[%clk 0:03:00]}  O-O {[%clk 0:03:00]} 7. O-O {[%clk 0:03:00]}  c5 {[%clk 0:03:00]} 8. c3 {[%clk 0:02:57]}  Nc6 {[%clk 0:03:01]} 9. Qe2 {[%clk 0:02:55]}  a5 {[%clk 0:03:01]} 10. Re1 {[%clk 0:02:46]}  b6 {[%clk 0:03:01]} 11. e5 {[%clk 0:02:42]}  Nd7 {[%clk 0:03:01]} 12. Nf1 {[%clk 0:02:42]}  Ndxe5 {[%clk 0:02:57]} 13. Bf4 {[%clk 0:02:31]}  Nxf3+ {[%clk 0:02:55]} 14. Bxf3 {[%clk 0:02:31]}  Ba6 {[%clk 0:02:56]} 15. h4 {[%clk 0:02:28]}  e5 {[%clk 0:02:56]} 16. Bg5 {[%clk 0:02:27]}  f6 {[%clk 0:02:56]} 17. Bd2 {[%clk 0:02:26]}  e4 {[%clk 0:02:56]} 18. Bg2 {[%clk 0:02:12]}  Bxd3 {[%clk 0:02:55]} 19. Qd1 {[%clk 0:02:10]}  f5 {[%clk 0:02:53]} 20. Bf4 {[%clk 0:01:55]}  d4 {[%clk 0:02:43]} 21. Qb3+ {[%clk 0:01:50]}  Kh8 {[%clk 0:02:35]} 22. Nh2 {[%clk 0:01:42]}  a4 {[%clk 0:02:32]} 23. Qa3 {[%clk 0:01:39]}  Qd7 {[%clk 0:02:05]} 24. Bh3 {[%clk 0:01:33]}  Na5 {[%clk 0:02:04]} 25. b4 {[%clk 0:01:29]}  Nc4 {[%clk 0:01:59]} 26. Qc1 {[%clk 0:01:26]}  dxc3 {[%clk 0:01:58]} 27. Bh6 {[%clk 0:01:17]}  cxb4 {[%clk 0:01:54]} 28. Bxg7+ {[%clk 0:01:12]}  Qxg7 {[%clk 0:01:55]} 29. Kh1 {[%clk 0:01:11]}  Nd2 {[%clk 0:01:50]} 30. g4 {[%clk 0:00:53]}  Qd4 {[%clk 0:01:43]} 31. gxf5 {[%clk 0:00:47]}  gxf5 {[%clk 0:01:36]} 32. Rg1 {[%clk 0:00:44]}  Qxf2 {[%clk 0:01:25]} 33. Rg2 {[%clk 0:00:42]}  Qxh4 {[%clk 0:01:24]} 0-1


[Site "https://www.chess.com"]

[Event "Titled Tuesday Blitz May 10 Late 2022"]
[White "Xiong, Jeffery"]
[Black "Zhigalko, Sergei"]
[WhiteFideId "2047640"]
[BlackFideId "13502956"]
[WhiteElo "2727"]
[BlackElo "2662"]
[Result "0-1"]
[Round "09"]
[TimeControl "180+1"]
[Date "2022.05.10"]
[WhiteClock "0:00:01"]
[BlackClock "0:00:04"]

1. e4 {[%clk 0:03:00]}  c5 {[%clk 0:03:00]} 2. Nf3 {[%clk 0:03:01]}  Nc6 {[%clk 0:03:00]} 3. Nc3 {[%clk 0:03:01]}  Nf6 {[%clk 0:03:01]} 4. Bb5 {[%clk 0:02:58]}  Qc7 {[%clk 0:03:00]} 5. O-O {[%clk 0:02:56]}  Nd4 {[%clk 0:03:01]} 6. Re1 {[%clk 0:02:52]}  a6 {[%clk 0:03:01]} 7. Bf1 {[%clk 0:02:52]}  e5 {[%clk 0:02:56]} 8. a4 {[%clk 0:02:41]}  d6 {[%clk 0:02:54]} 9. h3 {[%clk 0:02:24]}  Be7 {[%clk 0:02:53]} 10. Bc4 {[%clk 0:02:23]}  O-O {[%clk 0:02:48]} 11. d3 {[%clk 0:02:24]}  h6 {[%clk 0:02:47]} 12. Nh2 {[%clk 0:02:16]}  Rb8 {[%clk 0:02:25]} 13. a5 {[%clk 0:01:43]}  Nc6 {[%clk 0:02:08]} 14. Bd2 {[%clk 0:01:44]}  Nxa5 {[%clk 0:01:50]} 15. Nd5 {[%clk 0:01:44]}  Nxd5 {[%clk 0:01:50]} 16. Bxa5 {[%clk 0:01:45]}  b6 {[%clk 0:01:51]} 17. Bxd5 {[%clk 0:01:42]}  bxa5 {[%clk 0:01:51]} 18. b3 {[%clk 0:01:42]}  Be6 {[%clk 0:01:27]} 19. Bc4 {[%clk 0:01:42]}  Kh8 {[%clk 0:01:13]} 20. Qd2 {[%clk 0:01:38]}  Rb4 {[%clk 0:01:11]} 21. Bxa6 {[%clk 0:01:34]}  Bg5 {[%clk 0:01:06]} 22. Qc3 {[%clk 0:01:31]}  f5 {[%clk 0:01:06]} 23. Bc4 {[%clk 0:01:30]}  Bc8 {[%clk 0:00:57]} 24. Nf3 {[%clk 0:01:24]}  Qd8 {[%clk 0:00:53]} 25. Nxg5 {[%clk 0:01:23]}  Qxg5 {[%clk 0:00:53]} 26. Rxa5 {[%clk 0:01:20]}  f4 {[%clk 0:00:45]} 27. f3 {[%clk 0:01:21]}  Bxh3 {[%clk 0:00:41]} 28. Qd2 {[%clk 0:01:21]}  Rf6 {[%clk 0:00:14]} 29. Kf1 {[%clk 0:00:50]}  Be6 {[%clk 0:00:13]} 30. g4 {[%clk 0:00:48]}  Bxc4 {[%clk 0:00:05]} 31. dxc4 {[%clk 0:00:49]}  Rb8 {[%clk 0:00:03]} 32. Qh2 {[%clk 0:00:46]}  Rbf8 {[%clk 0:00:03]} 33. Ke2 {[%clk 0:00:46]}  Rg6 {[%clk 0:00:03]} 34. Ra7 {[%clk 0:00:44]}  Qd8 {[%clk 0:00:03]} 35. Rea1 {[%clk 0:00:42]}  Kh7 {[%clk 0:00:03]} 36. R1a6 {[%clk 0:00:40]}  Rgf6 {[%clk 0:00:03]} 37. Qh4 {[%clk 0:00:39]}  Qe8 {[%clk 0:00:02]} 38. Rb6 {[%clk 0:00:38]}  R8f7 {[%clk 0:00:02]} 39. Raa6 {[%clk 0:00:35]}  Qf8 {[%clk 0:00:02]} 40. Ra1 {[%clk 0:00:30]}  Rg6 {[%clk 0:00:02]} 41. Rba6 {[%clk 0:00:29]}  Rb7 {[%clk 0:00:02]} 42. Ra8 {[%clk 0:00:29]}  Rb8 {[%clk 0:00:03]} 43. R8a7 {[%clk 0:00:29]}  Re8 {[%clk 0:00:02]} 44. Rh1 {[%clk 0:00:29]}  Ree6 {[%clk 0:00:02]} 45. g5 {[%clk 0:00:26]}  Qd8 {[%clk 0:00:02]} 46. Rxg7+ {[%clk 0:00:22]}  Rxg7 {[%clk 0:00:01]} 47. g6+ {[%clk 0:00:23]}  Rexg6 {[%clk 0:00:01]} 48. Qxd8 {[%clk 0:00:23]}  Rg2+ {[%clk 0:00:02]} 49. Kd1 {[%clk 0:00:23]}  Rg1+ {[%clk 0:00:02]} 50. Rxg1 {[%clk 0:00:23]}  Rg8 {[%clk 0:00:02]} 51. Kd2 {[%clk 0:00:24]}  Rxd8 {[%clk 0:00:03]} 52. c3 {[%clk 0:00:20]}  Rb8 {[%clk 0:00:03]} 53. Kc2 {[%clk 0:00:20]}  h5 {[%clk 0:00:03]} 54. Rd1 {[%clk 0:00:18]}  Rb6 {[%clk 0:00:03]} 55. Kb2 {[%clk 0:00:17]}  Kg6 {[%clk 0:00:03]} 56. Rg1+ {[%clk 0:00:17]}  Kh6 {[%clk 0:00:03]} 57. Rh1 {[%clk 0:00:17]}  Kg5 {[%clk 0:00:03]} 58. Rg1+ {[%clk 0:00:17]}  Kh4 {[%clk 0:00:03]} 59. Ka3 {[%clk 0:00:18]}  Kh3 {[%clk 0:00:03]} 60. b4 {[%clk 0:00:18]}  h4 {[%clk 0:00:02]} 61. Ka4 {[%clk 0:00:16]}  Kh2 {[%clk 0:00:02]} 62. Rg4 {[%clk 0:00:16]}  h3 {[%clk 0:00:02]} 63. Ka5 {[%clk 0:00:16]}  Rb8 {[%clk 0:00:02]} 64. b5 {[%clk 0:00:17]}  Ra8+ {[%clk 0:00:01]} 65. Kb6 {[%clk 0:00:18]}  Ra3 {[%clk 0:00:01]} 66. Kc7 {[%clk 0:00:18]}  Rxc3 {[%clk 0:00:02]} 67. b6 {[%clk 0:00:19]}  Rxf3 {[%clk 0:00:03]} 68. Kxd6 {[%clk 0:00:16]}  Rb3 {[%clk 0:00:03]} 69. Kxc5 {[%clk 0:00:01]}  f3 {[%clk 0:00:03]} 70. Rg5 {[%clk 0:00:02]}  f2 {[%clk 0:00:03]} 71. Rf5 {[%clk 0:00:03]}  Kg2 {[%clk 0:00:03]} 72. Rg5+ {[%clk 0:00:03]}  Kf3 {[%clk 0:00:04]} 73. Rf5+ {[%clk 0:00:02]}  Ke2 {[%clk 0:00:04]} 74. Rf3 {[%clk 0:00:01]}  Kxf3 {[%clk 0:00:04]} 0-1


[Site "https://www.chess.com"]